[Event "Early-Titled-Tuesday-Blitz-February-13-2024"]
[Site "Chess.com"]
[Date "2024.02.13"]
[Round "5"]
[White "hsd2016"]
[Black "BursaBBSatranc"]
[Result "1-0"]
[WhiteElo "2337"]
[BlackElo "2668"]
[TimeControl "180+1"]
[EndTime "9:00:27 PST"]
[Termination "hsd2016 won by resignation"]

1. d4 {[%clk 0:03:00.9]} 1... d5 {[%clk 0:02:59.6]} 2. c4 {[%clk 0:02:59.7]}
2... c6 {[%clk 0:02:59.8]} 3. Nc3 {[%clk 0:02:59.9]} 3... Nf6 {[%clk 0:03:00]}
4. Nf3 {[%clk 0:03:00.2]} 4... a6 {[%clk 0:02:59.9]} 5. e3 {[%clk 0:02:58.1]}
5... b5 {[%clk 0:02:59.9]} 6. c5 {[%clk 0:02:58.1]} 6... Bg4 {[%clk 0:02:58.5]}
7. Be2 {[%clk 0:02:56.4]} 7... Nbd7 {[%clk 0:02:58.4]} 8. O-O {[%clk 0:02:53]}
8... g6 {[%clk 0:02:48.9]} 9. Ne5 {[%clk 0:02:33.7]} 9... Bxe2 {[%clk
0:02:48.1]} 10. Qxe2 {[%clk 0:02:33.1]} 10... Nxe5 {[%clk 0:02:47.7]} 11. dxe5
{[%clk 0:02:34]} 11... Nd7 {[%clk 0:02:47.9]} 12. e6 {[%clk 0:02:34.6]} 12...
fxe6 {[%clk 0:02:26.4]} 13. Qg4 {[%clk 0:02:34.4]} 13... Kf7 {[%clk 0:02:22.6]}
14. e4 {[%clk 0:02:20.4]} 14... d4 {[%clk 0:01:59.9]} 15. Ne2 {[%clk 0:01:42.7]}
15... Bg7 {[%clk 0:01:57.6]} 16. Nf4 {[%clk 0:01:39.1]} 16... Nxc5 {[%clk
0:01:30.5]} 17. b4 {[%clk 0:01:26.1]} 17... e5 {[%clk 0:01:30.4]} 18. Nh3 {[%clk
0:01:12.6]} 18... Ne6 {[%clk 0:01:21.3]} 19. f4 {[%clk 0:01:12.7]} 19... Qd7
{[%clk 0:00:44.8]} 20. f5 {[%clk 0:01:08.1]} 20... gxf5 {[%clk 0:00:41.9]} 21.
exf5 {[%clk 0:01:06.1]} 21... Nc7 {[%clk 0:00:31.7]} 22. Ng5+ {[%clk 0:01:02.7]}
22... Kg8 {[%clk 0:00:13.9]} 23. Ne6 {[%clk 0:01:02.4]} 23... Nxe6 {[%clk
0:00:07.4]} 24. fxe6 {[%clk 0:01:03.3]} 24... Qe8 {[%clk 0:00:08]} 25. Rf7
{[%clk 0:01:03.5]} 25... Qxf7 {[%clk 0:00:08.7]} 26. exf7+ {[%clk 0:01:03.9]}
26... Kxf7 {[%clk 0:00:09.6]} 27. Bg5 {[%clk 0:00:57.6]} 27... Rad8 {[%clk
0:00:07.7]} 28. Rf1+ {[%clk 0:00:52.7]} 28... Bf6 {[%clk 0:00:08.1]} 29. Qh5+
{[%clk 0:00:47.8]} 29... Ke6 {[%clk 0:00:08.2]} 30. Qg4+ {[%clk 0:00:40.8]}
30... Kf7 {[%clk 0:00:08.6]} 31. Qf5 {[%clk 0:00:23.4]} 31... Rd6 {[%clk
0:00:06.4]} 32. Qxe5 {[%clk 0:00:23]} 32... Rhd8 {[%clk 0:00:06.2]} 33. Bxf6
{[%clk 0:00:20.2]} 33... exf6 {[%clk 0:00:06.6]} 34. Qh5+ {[%clk 0:00:20.5]}
34... Kg7 {[%clk 0:00:07.1]} 35. Qg4+ {[%clk 0:00:18.1]} 35... Kh8 {[%clk
0:00:07.1]} 36. Rd1 {[%clk 0:00:18]} 36... d3 {[%clk 0:00:07.5]} 37. Rd2 {[%clk
0:00:18.6]} 37... Re8 {[%clk 0:00:05.3]} 38. Qf3 {[%clk 0:00:17.4]} 38... Red8
{[%clk 0:00:05.2]} 39. a3 {[%clk 0:00:17.4]} 39... Kg7 {[%clk 0:00:05.5]} 40.
Kf2 {[%clk 0:00:17]} 40... Kf7 {[%clk 0:00:06]} 41. Qh5+ {[%clk 0:00:16.5]}
41... Kg8 {[%clk 0:00:05.7]} 42. Qf5 {[%clk 0:00:13.2]} 42... R8d7 {[%clk
0:00:05.9]} 43. Ke3 {[%clk 0:00:12.5]} 43... Re7+ {[%clk 0:00:06]} 44. Kf3
{[%clk 0:00:12.3]} 44... Red7 {[%clk 0:00:06.3]} 45. h4 {[%clk 0:00:12.1]} 45...
Kf7 {[%clk 0:00:06.7]} 46. h5 {[%clk 0:00:12.7]} 46... Ke7 {[%clk 0:00:07.1]}
47. Qxh7+ {[%clk 0:00:12.9]} 47... Ke8 {[%clk 0:00:06]} 48. Qg6+ {[%clk
0:00:12]} 48... Ke7 {[%clk 0:00:06.5]} 49. h6 {[%clk 0:00:11.4]} 1-0

[Event "Early-Titled-Tuesday-Blitz-February-13-2024"]
[Site "Chess.com"]
[Date "2024.02.13"]
[Round "5"]
[White "Statham_01"]
[Black "ploxoi"]
[Result "1/2-1/2"]
[WhiteElo "2581"]
[BlackElo "2448"]
[TimeControl "180+1"]
[EndTime "9:00:28 PST"]
[Termination "Game drawn by repetition"]

1. e4 {[%clk 0:03:00.9]} 1... c5 {[%clk 0:02:58.6]} 2. Nf3 {[%clk 0:02:56.3]}
2... e6 {[%clk 0:02:58.6]} 3. c3 {[%clk 0:02:51.7]} 3... d5 {[%clk 0:02:58.3]}
4. exd5 {[%clk 0:02:50.4]} 4... Qxd5 {[%clk 0:02:59.2]} 5. Na3 {[%clk
0:02:50.2]} 5... Nc6 {[%clk 0:02:58.2]} 6. d4 {[%clk 0:02:50.2]} 6... Nf6 {[%clk
0:02:57.6]} 7. Nb5 {[%clk 0:02:49.1]} 7... Qd8 {[%clk 0:02:57.9]} 8. dxc5 {[%clk
0:02:46.6]} 8... Bxc5 {[%clk 0:02:58.8]} 9. Qxd8+ {[%clk 0:02:45.2]} 9... Kxd8
{[%clk 0:02:59.7]} 10. Bf4 {[%clk 0:02:44.7]} 10... Ne4 {[%clk 0:03:00.1]} 11.
Bg3 {[%clk 0:02:31.5]} 11... Nxg3 {[%clk 0:02:37.4]} 12. hxg3 {[%clk 0:02:28.8]}
12... Ke7 {[%clk 0:02:37.3]} 13. Bd3 {[%clk 0:02:20.3]} 13... a6 {[%clk
0:02:23.9]} 14. Nbd4 {[%clk 0:02:18.8]} 14... Nxd4 {[%clk 0:02:23.9]} 15. Nxd4
{[%clk 0:02:11.2]} 15... Bxd4 {[%clk 0:02:23.1]} 16. cxd4 {[%clk 0:02:12.1]}
16... h6 {[%clk 0:02:19.2]} 17. Rc1 {[%clk 0:02:09]} 17... Bd7 {[%clk
0:02:14.4]} 18. Kd2 {[%clk 0:02:04.6]} 18... Bc6 {[%clk 0:02:13.3]} 19. f3
{[%clk 0:02:01.8]} 19... Rhd8 {[%clk 0:02:12.9]} 20. Ke3 {[%clk 0:02:01.3]}
20... Rd7 {[%clk 0:02:06.6]} 21. Be4 {[%clk 0:01:53.2]} 21... Bd5 {[%clk
0:01:21.9]} 22. Bxd5 {[%clk 0:01:25.7]} 22... Rxd5 {[%clk 0:01:22.8]} 23. Rc7+
{[%clk 0:01:25.8]} 23... Rd7 {[%clk 0:01:22.3]} 24. Rhc1 {[%clk 0:01:24.5]}
24... Rd8 {[%clk 0:01:19]} 25. g4 {[%clk 0:01:19.7]} 25... Kd6 {[%clk
0:01:09.9]} 26. R7c5 {[%clk 0:01:14.8]} 26... Ke7 {[%clk 0:01:01.5]} 27. Rc7
{[%clk 0:01:06]} 27... Kf6 {[%clk 0:01:01.1]} 28. Rxd7 {[%clk 0:01:01.1]} 28...
Rxd7 {[%clk 0:01:01]} 29. Rc5 {[%clk 0:01:01.2]} 29... Ke7 {[%clk 0:00:53.2]}
30. a4 {[%clk 0:01:01.1]} 30... Kd8 {[%clk 0:00:51.6]} 31. Ke4 {[%clk 0:00:51]}
31... Rc7 {[%clk 0:00:37.9]} 32. b4 {[%clk 0:00:44.1]} 32... b6 {[%clk
0:00:28.2]} 33. Rxc7 {[%clk 0:00:32.6]} 33... Kxc7 {[%clk 0:00:29.1]} 34. Ke5
{[%clk 0:00:31.4]} 34... Kc6 {[%clk 0:00:20.5]} 35. f4 {[%clk 0:00:27.8]} 35...
Kd7 {[%clk 0:00:20.7]} 36. d5 {[%clk 0:00:26.3]} 36... f6+ {[%clk 0:00:20.7]}
37. Ke4 {[%clk 0:00:21.5]} 37... Kd6 {[%clk 0:00:16.5]} 38. dxe6 {[%clk
0:00:21.8]} 38... Kxe6 {[%clk 0:00:17.4]} 39. f5+ {[%clk 0:00:12.9]} 39... Kd6
{[%clk 0:00:17.9]} 40. Kd4 {[%clk 0:00:13.5]} 40... b5 {[%clk 0:00:18.5]} 41. a5
{[%clk 0:00:10.5]} 41... Kc6 {[%clk 0:00:18.8]} 42. Ke4 {[%clk 0:00:06.4]} 42...
Kd6 {[%clk 0:00:19.1]} 43. Kd4 {[%clk 0:00:04.7]} 43... Kc6 {[%clk 0:00:19.3]}
44. Ke4 {[%clk 0:00:03.4]} 44... Kd6 {[%clk 0:00:19.7]} 45. g3 {[%clk
0:00:04.3]} 45... Kc6 {[%clk 0:00:19.6]} 46. Kd4 {[%clk 0:00:04.5]} 46... Kd6
{[%clk 0:00:20.1]} 47. Ke4 {[%clk 0:00:04]} 47... Kc6 {[%clk 0:00:20.6]} 48. Kd4
{[%clk 0:00:04.4]} 48... Kd6 {[%clk 0:00:20.9]} 49. Ke4 {[%clk 0:00:04.9]}
1/2-1/2

[Event "Early-Titled-Tuesday-Blitz-February-13-2024"]
[Site "Chess.com"]
[Date "2024.02.13"]
[Round "5"]
[White "Sofia_Blokhin"]
[Black "sharkarton"]
[Result "0-1"]
[WhiteElo "2253"]
[BlackElo "2545"]
[TimeControl "180+1"]
[EndTime "9:00:30 PST"]
[Termination "sharkarton won by resignation"]

1. d4 {[%clk 0:03:00.9]} 1... d5 {[%clk 0:02:44.6]} 2. c4 {[%clk 0:03:00.5]}
2... e6 {[%clk 0:02:44.2]} 3. Nc3 {[%clk 0:03:00]} 3... a6 {[%clk 0:02:44.3]} 4.
cxd5 {[%clk 0:02:58.5]} 4... exd5 {[%clk 0:02:45.2]} 5. e3 {[%clk 0:02:58.2]}
5... Nf6 {[%clk 0:02:41.5]} 6. Nf3 {[%clk 0:02:58.3]} 6... Bd6 {[%clk
0:02:41.1]} 7. Bd3 {[%clk 0:02:58.2]} 7... O-O {[%clk 0:02:41.7]} 8. O-O {[%clk
0:02:58.3]} 8... Bg4 {[%clk 0:02:41.4]} 9. h3 {[%clk 0:02:57.7]} 9... Bh5 {[%clk
0:02:41.4]} 10. Re1 {[%clk 0:02:56.2]} 10... Nbd7 {[%clk 0:02:36.4]} 11. Qc2
{[%clk 0:02:55.5]} 11... Re8 {[%clk 0:02:31.8]} 12. e4 {[%clk 0:02:50.7]} 12...
dxe4 {[%clk 0:02:25.3]} 13. Nxe4 {[%clk 0:02:49.8]} 13... Nxe4 {[%clk
0:02:24.9]} 14. Bxe4 {[%clk 0:02:50.1]} 14... Bg6 {[%clk 0:02:25.2]} 15. Bxg6
{[%clk 0:02:47.2]} 15... Rxe1+ {[%clk 0:02:24.4]} 16. Nxe1 {[%clk 0:02:46.4]}
16... hxg6 {[%clk 0:02:25.1]} 17. Be3 {[%clk 0:02:44.9]} 17... Nb6 {[%clk
0:02:19.8]} 18. Nf3 {[%clk 0:02:36.8]} 18... Nd5 {[%clk 0:02:01.5]} 19. Qe4
{[%clk 0:02:35.6]} 19... Qd7 {[%clk 0:01:51.6]} 20. Ng5 {[%clk 0:02:27.7]} 20...
Nf6 {[%clk 0:01:33.5]} 21. Qh4 {[%clk 0:02:24.2]} 21... Qa4 {[%clk 0:01:15.6]}
22. b3 {[%clk 0:02:21.5]} 22... Qb4 {[%clk 0:01:14.3]} 23. Rd1 {[%clk
0:02:16.4]} 23... Rd8 {[%clk 0:01:10.6]} 24. Bd2 {[%clk 0:02:12.8]} 24... Qb5
{[%clk 0:00:47.8]} 25. Bc3 {[%clk 0:02:02.7]} 25... Qd5 {[%clk 0:00:42.6]} 26.
Re1 {[%clk 0:02:00.4]} 26... Qf5 {[%clk 0:00:26.1]} 27. Re5 {[%clk 0:01:28.5]}
27... Bxe5 {[%clk 0:00:12.3]} 28. dxe5 {[%clk 0:01:28.7]} 28... Nh5 {[%clk
0:00:10.9]} 29. g4 {[%clk 0:01:20.9]} 29... Rd1+ {[%clk 0:00:11.1]} 30. Kh2
{[%clk 0:01:12.5]} 30... Qc2 {[%clk 0:00:07.2]} 31. gxh5 {[%clk 0:00:59.8]}
31... Qxc3 {[%clk 0:00:06.6]} 32. hxg6 {[%clk 0:00:58.2]} 32... Qxe5+ {[%clk
0:00:06.8]} 33. Kg2 {[%clk 0:00:49.2]} 33... fxg6 {[%clk 0:00:07.1]} 34. Qc4+
{[%clk 0:00:39.4]} 34... Qd5+ {[%clk 0:00:04.4]} 35. Qxd5+ {[%clk 0:00:39.1]}
35... Rxd5 {[%clk 0:00:05.3]} 36. Ne4 {[%clk 0:00:37.7]} 36... Rd4 {[%clk
0:00:05.2]} 37. Kf3 {[%clk 0:00:37.5]} 37... Rd3+ {[%clk 0:00:04.9]} 38. Kf4
{[%clk 0:00:37.3]} 38... Rxh3 {[%clk 0:00:05]} 39. Kg5 {[%clk 0:00:37.6]} 39...
Rh1 {[%clk 0:00:04.8]} 40. Kxg6 {[%clk 0:00:37]} 40... Ra1 {[%clk 0:00:05.7]}
41. Nc3 {[%clk 0:00:35.7]} 41... Rc1 {[%clk 0:00:05.7]} 42. Nd5 {[%clk
0:00:35.5]} 42... Rc2 {[%clk 0:00:06]} 43. Ne7+ {[%clk 0:00:34]} 43... Kf8
{[%clk 0:00:06.4]} 44. Nd5 {[%clk 0:00:32.8]} 44... Rxf2 {[%clk 0:00:06.7]} 45.
Nxc7 {[%clk 0:00:33]} 45... Rxa2 {[%clk 0:00:07.4]} 46. Ne6+ {[%clk 0:00:31.6]}
46... Ke7 {[%clk 0:00:08.1]} 47. Nc5 {[%clk 0:00:26.1]} 47... Rb2 {[%clk
0:00:09]} 48. Nxb7 {[%clk 0:00:22.8]} 48... Rxb3 {[%clk 0:00:08.5]} 49. Na5
{[%clk 0:00:22.6]} 49... Rb5 {[%clk 0:00:08]} 50. Nc6+ {[%clk 0:00:21.8]} 50...
Kd6 {[%clk 0:00:08.2]} 51. Nd4 {[%clk 0:00:21.2]} 51... Kc5 {[%clk 0:00:07.9]}
52. Ne6+ {[%clk 0:00:20.9]} 52... Kc4 {[%clk 0:00:08.2]} 53. Kxg7 {[%clk
0:00:20.7]} 53... a5 {[%clk 0:00:09.1]} 54. Kf6 {[%clk 0:00:20.3]} 54... a4
{[%clk 0:00:10]} 55. Nc7 {[%clk 0:00:19.4]} 55... a3 {[%clk 0:00:10.9]} 56. Nxb5
{[%clk 0:00:19.1]} 56... Kxb5 {[%clk 0:00:10.9]} 0-1

[Event "Early-Titled-Tuesday-Blitz-February-13-2024"]
[Site "Chess.com"]
[Date "2024.02.13"]
[Round "5"]
[White "dianamirza"]
[Black "Jamal-Jamal-Jamal"]
[Result "1-0"]
[WhiteElo "1970"]
[BlackElo "2315"]
[TimeControl "180+1"]
[EndTime "9:00:30 PST"]
[Termination "dianamirza won by checkmate"]

1. d4 {[%clk 0:03:00.9]} 1... f5 {[%clk 0:02:58.3]} 2. Nf3 {[%clk 0:02:59.2]}
2... Nf6 {[%clk 0:02:57.8]} 3. e3 {[%clk 0:02:59.8]} 3... e6 {[%clk 0:02:55.8]}
4. Bd3 {[%clk 0:03:00.3]} 4... d5 {[%clk 0:02:55.5]} 5. b3 {[%clk 0:03:01]} 5...
Bd6 {[%clk 0:02:53]} 6. Bb2 {[%clk 0:03:01.9]} 6... b6 {[%clk 0:02:50.4]} 7.
Nbd2 {[%clk 0:03:01.5]} 7... O-O {[%clk 0:02:50.5]} 8. O-O {[%clk 0:03:02.2]}
8... c5 {[%clk 0:02:50.8]} 9. c4 {[%clk 0:03:02.5]} 9... Bb7 {[%clk 0:02:50.4]}
10. Ne5 {[%clk 0:03:01.7]} 10... Nbd7 {[%clk 0:02:49.3]} 11. f4 {[%clk
0:03:00.4]} 11... Ne4 {[%clk 0:02:45.9]} 12. Ndf3 {[%clk 0:02:53.3]} 12... Rc8
{[%clk 0:02:36.7]} 13. Nxd7 {[%clk 0:02:45.2]} 13... Qxd7 {[%clk 0:02:36.4]} 14.
Ne5 {[%clk 0:02:46.1]} 14... Bxe5 {[%clk 0:02:15.6]} 15. dxe5 {[%clk 0:02:38.8]}
15... dxc4 {[%clk 0:02:05.6]} 16. Bxc4 {[%clk 0:02:37.1]} 16... Qe7 {[%clk
0:02:05.6]} 17. Qe2 {[%clk 0:02:31.1]} 17... Rfd8 {[%clk 0:02:04.8]} 18. Rad1
{[%clk 0:02:30.9]} 18... h6 {[%clk 0:01:53.9]} 19. Ba1 {[%clk 0:01:59.9]} 19...
Kh7 {[%clk 0:01:46.5]} 20. Rd3 {[%clk 0:01:42.8]} 20... Rxd3 {[%clk 0:01:42.6]}
21. Bxd3 {[%clk 0:01:43.7]} 21... Rd8 {[%clk 0:01:38.5]} 22. Rd1 {[%clk
0:01:38.5]} 22... Qh4 {[%clk 0:01:09.7]} 23. Bxe4 {[%clk 0:01:06.9]} 23... Rxd1+
{[%clk 0:01:07.3]} 24. Qxd1 {[%clk 0:01:07.8]} 24... Bxe4 {[%clk 0:01:04.7]} 25.
Qe2 {[%clk 0:00:55]} 25... b5 {[%clk 0:00:48.7]} 26. Qf2 {[%clk 0:00:53.1]}
26... Qg4 {[%clk 0:00:44.8]} 27. Qd2 {[%clk 0:00:39.4]} 27... a5 {[%clk
0:00:36.3]} 28. a3 {[%clk 0:00:26]} 28... Kg6 {[%clk 0:00:23.8]} 29. b4 {[%clk
0:00:24.2]} 29... axb4 {[%clk 0:00:23.5]} 30. axb4 {[%clk 0:00:25.1]} 30... cxb4
{[%clk 0:00:23.6]} 31. Bb2 {[%clk 0:00:20.9]} 31... Kh7 {[%clk 0:00:18.9]} 32.
h3 {[%clk 0:00:20]} 32... Qh5 {[%clk 0:00:15.8]} 33. Kf2 {[%clk 0:00:17.4]}
33... Qg6 {[%clk 0:00:15.2]} 34. Kf1 {[%clk 0:00:17.1]} 34... b3 {[%clk
0:00:13.3]} 35. Qc3 {[%clk 0:00:14.8]} 35... Qxg2+ {[%clk 0:00:12.4]} 36. Ke1
{[%clk 0:00:15.3]} 36... Qg3+ {[%clk 0:00:09.5]} 37. Kd2 {[%clk 0:00:13.9]}
37... Qxh3 {[%clk 0:00:08.8]} 38. Qxb3 {[%clk 0:00:13.8]} 38... Qg2+ {[%clk
0:00:08.8]} 39. Kc3 {[%clk 0:00:13.6]} 39... Qe2 {[%clk 0:00:08.8]} 40. Kd4
{[%clk 0:00:13.6]} 40... Qd2+ {[%clk 0:00:07.8]} 41. Kc5 {[%clk 0:00:12.6]}
41... Bd5 {[%clk 0:00:05.3]} 42. Qc3 {[%clk 0:00:10.8]} 42... Qe2 {[%clk
0:00:05.2]} 43. Kd6 {[%clk 0:00:10.3]} 43... Qh5 {[%clk 0:00:03.5]} 44. Qc7
{[%clk 0:00:08]} 44... Qe8 {[%clk 0:00:03.1]} 45. Kc5 {[%clk 0:00:07.5]} 45...
Qf8+ {[%clk 0:00:02.6]} 46. Qd6 {[%clk 0:00:06.7]} 46... Qxd6+ {[%clk
0:00:02.6]} 47. exd6 {[%clk 0:00:07]} 47... e5 {[%clk 0:00:02.5]} 48. d7 {[%clk
0:00:07.2]} 48... Bf7 {[%clk 0:00:02.3]} 49. d8=Q {[%clk 0:00:07.2]} 49... exf4
{[%clk 0:00:02.7]} 50. exf4 {[%clk 0:00:07.3]} 50... h5 {[%clk 0:00:03]} 51. Qd4
{[%clk 0:00:07.5]} 51... Bg6 {[%clk 0:00:03.5]} 52. Qxg7# {[%clk 0:00:07.8]} 1-0

[Event "Early-Titled-Tuesday-Blitz-February-13-2024"]
[Site "Chess.com"]
[Date "2024.02.13"]
[Round "5"]
[White "EvgenyBurmakin"]
[Black "Alblooshi_Hamad"]
[Result "0-1"]
[WhiteElo "2389"]
[BlackElo "2230"]
[TimeControl "180+1"]
[EndTime "9:00:30 PST"]
[Termination "Alblooshi_Hamad won on time"]

1. e4 {[%clk 0:03:00.9]} 1... e6 {[%clk 0:02:57.5]} 2. d4 {[%clk 0:02:59.4]}
2... d5 {[%clk 0:02:58]} 3. Nd2 {[%clk 0:02:59.9]} 3... c5 {[%clk 0:02:57]} 4.
Ngf3 {[%clk 0:02:59.1]} 4... cxd4 {[%clk 0:02:55.1]} 5. exd5 {[%clk 0:02:54.2]}
5... Qxd5 {[%clk 0:02:52.9]} 6. Bc4 {[%clk 0:02:53.7]} 6... Qd6 {[%clk
0:02:50.7]} 7. O-O {[%clk 0:02:52.8]} 7... Nf6 {[%clk 0:02:50.3]} 8. Re1 {[%clk
0:02:51.4]} 8... Nc6 {[%clk 0:02:49.5]} 9. Nb3 {[%clk 0:02:50.6]} 9... a6 {[%clk
0:02:46.7]} 10. a4 {[%clk 0:02:36.5]} 10... Qc7 {[%clk 0:02:43.1]} 11. Bf1
{[%clk 0:02:26.2]} 11... Bd6 {[%clk 0:02:37.2]} 12. g3 {[%clk 0:02:19]} 12...
O-O {[%clk 0:02:36.4]} 13. Nbxd4 {[%clk 0:02:02.9]} 13... Nxd4 {[%clk
0:02:35.8]} 14. Qxd4 {[%clk 0:01:59.6]} 14... b6 {[%clk 0:02:32]} 15. c3 {[%clk
0:01:55.4]} 15... Bb7 {[%clk 0:02:30.8]} 16. Bg2 {[%clk 0:01:55.2]} 16... Rfd8
{[%clk 0:02:24.3]} 17. Qh4 {[%clk 0:01:50.7]} 17... Be7 {[%clk 0:02:21.6]} 18.
Bg5 {[%clk 0:01:41.5]} 18... h6 {[%clk 0:02:16.8]} 19. Bf4 {[%clk 0:01:16]}
19... Qc6 {[%clk 0:02:08.4]} 20. Bxh6 {[%clk 0:00:34.6]} 20... gxh6 {[%clk
0:02:08]} 21. Qxh6 {[%clk 0:00:35]} 21... Qc5 {[%clk 0:02:00.9]} 22. Re5 {[%clk
0:00:31.1]} 22... Ng4 {[%clk 0:01:47.7]} 23. Rxc5 {[%clk 0:00:24.9]} 23... Nxh6
{[%clk 0:01:47.6]} 24. Rc7 {[%clk 0:00:24.1]} 24... Bxf3 {[%clk 0:01:23.3]} 25.
Bxf3 {[%clk 0:00:25]} 25... Bd6 {[%clk 0:01:17.3]} 26. Rb7 {[%clk 0:00:20.3]}
26... Rab8 {[%clk 0:01:15.2]} 27. Ra7 {[%clk 0:00:20.1]} 27... a5 {[%clk
0:01:14.1]} 28. Kf1 {[%clk 0:00:18.6]} 28... Bc5 {[%clk 0:01:12.1]} 29. Ke2
{[%clk 0:00:17.4]} 29... Nf5 {[%clk 0:01:11.3]} 30. Rb1 {[%clk 0:00:15.3]} 30...
Kf8 {[%clk 0:00:49.4]} 31. h4 {[%clk 0:00:14]} 31... Rd6 {[%clk 0:00:24.9]} 32.
h5 {[%clk 0:00:13.7]} 32... Rbd8 {[%clk 0:00:23.5]} 33. Kf1 {[%clk 0:00:09.8]}
33... Rd2 {[%clk 0:00:22.5]} 34. Be2 {[%clk 0:00:09.9]} 34... Rc2 {[%clk
0:00:15.1]} 35. b4 {[%clk 0:00:06.6]} 35... axb4 {[%clk 0:00:14.7]} 36. cxb4
{[%clk 0:00:07.5]} 36... Be7 {[%clk 0:00:13.8]} 37. a5 {[%clk 0:00:07.3]} 37...
bxa5 {[%clk 0:00:13.3]} 38. bxa5 {[%clk 0:00:07.8]} 38... Rdd2 {[%clk
0:00:13.5]} 39. Re1 {[%clk 0:00:05.5]} 39... Nd4 {[%clk 0:00:10.9]} 40. h6
{[%clk 0:00:05.7]} 40... Bf6 {[%clk 0:00:08.6]} 41. Ra8+ {[%clk 0:00:05.5]}
41... Ke7 {[%clk 0:00:09]} 42. h7 {[%clk 0:00:05.4]} 42... Nxe2 {[%clk
0:00:06.2]} 43. h8=Q {[%clk 0:00:03.7]} 43... Bxh8 {[%clk 0:00:06.5]} 44. Rxh8
{[%clk 0:00:02.8]} 44... Nc3 {[%clk 0:00:05.7]} 0-1

[Event "Early-Titled-Tuesday-Blitz-February-13-2024"]
[Site "Chess.com"]
[Date "2024.02.13"]
[Round "5"]
[White "Gerodot71"]
[Black "MatthewG-p4p"]
[Result "1-0"]
[WhiteElo "2632"]
[BlackElo "2821"]
[TimeControl "180+1"]
[EndTime "9:00:33 PST"]
[Termination "Gerodot71 won on time"]

1. e4 {[%clk 0:03:00.9]} 1... e6 {[%clk 0:02:52.9]} 2. d4 {[%clk 0:03:01.3]}
2... d5 {[%clk 0:02:53]} 3. e5 {[%clk 0:03:02]} 3... c5 {[%clk 0:02:52.8]} 4. c3
{[%clk 0:03:02.8]} 4... Qb6 {[%clk 0:02:53.5]} 5. Nf3 {[%clk 0:03:01.9]} 5...
Nc6 {[%clk 0:02:54.2]} 6. Bd3 {[%clk 0:03:01.6]} 6... cxd4 {[%clk 0:02:54.5]} 7.
O-O {[%clk 0:03:01.9]} 7... Bd7 {[%clk 0:02:55.4]} 8. Re1 {[%clk 0:02:59.6]}
8... Rc8 {[%clk 0:02:54.1]} 9. h4 {[%clk 0:02:58.6]} 9... Nh6 {[%clk 0:02:51.9]}
10. Nbd2 {[%clk 0:02:52]} 10... dxc3 {[%clk 0:02:37.7]} 11. bxc3 {[%clk
0:02:52.9]} 11... Ng4 {[%clk 0:02:38.3]} 12. Re2 {[%clk 0:02:28.9]} 12... Bc5
{[%clk 0:02:36.8]} 13. Qe1 {[%clk 0:02:23.3]} 13... Na5 {[%clk 0:02:11]} 14. Rb1
{[%clk 0:01:59.3]} 14... Qc7 {[%clk 0:02:09.5]} 15. Nf1 {[%clk 0:01:45.1]} 15...
Nc4 {[%clk 0:02:03.4]} 16. Bf4 {[%clk 0:01:38.8]} 16... h5 {[%clk 0:01:48.7]}
17. Bg3 {[%clk 0:01:33.9]} 17... Bb6 {[%clk 0:01:44.7]} 18. Nd4 {[%clk
0:01:31.4]} 18... Ba5 {[%clk 0:01:44.1]} 19. Rc1 {[%clk 0:00:57.9]} 19... a6
{[%clk 0:01:31.3]} 20. Nh2 {[%clk 0:00:54]} 20... Na3 {[%clk 0:01:18.2]} 21.
Nxg4 {[%clk 0:00:52]} 21... hxg4 {[%clk 0:01:19.1]} 22. Qd1 {[%clk 0:00:30.9]}
22... b5 {[%clk 0:01:01.4]} 23. Re3 {[%clk 0:00:28.2]} 23... Nc4 {[%clk
0:00:40.8]} 24. Bxc4 {[%clk 0:00:26.8]} 24... Qxc4 {[%clk 0:00:38.5]} 25. Qxg4
{[%clk 0:00:27]} 25... g6 {[%clk 0:00:39]} 26. Rf3 {[%clk 0:00:22.2]} 26... Bd8
{[%clk 0:00:34.9]} 27. Qf4 {[%clk 0:00:21.4]} 27... Rf8 {[%clk 0:00:33.1]} 28.
Qh6 {[%clk 0:00:20.4]} 28... Be7 {[%clk 0:00:33]} 29. Bf4 {[%clk 0:00:19]} 29...
b4 {[%clk 0:00:15.2]} 30. Bd2 {[%clk 0:00:13.4]} 30... Bc5 {[%clk 0:00:12.1]}
31. Nb3 {[%clk 0:00:12.9]} 31... Bb6 {[%clk 0:00:06.8]} 32. cxb4 {[%clk
0:00:13.3]} 32... Qg4 {[%clk 0:00:06.2]} 33. Rxc8+ {[%clk 0:00:12.6]} 33... Bxc8
{[%clk 0:00:07.1]} 34. Rc3 {[%clk 0:00:10.8]} 34... Bd7 {[%clk 0:00:07.5]} 35.
Be3 {[%clk 0:00:10.8]} 35... Qd1+ {[%clk 0:00:06.3]} 36. Kh2 {[%clk 0:00:11]}
36... Bd8 {[%clk 0:00:06.9]} 37. Bg5 {[%clk 0:00:10.8]} 37... Rg8 {[%clk
0:00:02.9]} 38. Bxd8 {[%clk 0:00:09.9]} 38... Kxd8 {[%clk 0:00:03.8]} 39. Qg5+
{[%clk 0:00:10.4]} 39... Ke8 {[%clk 0:00:03.8]} 40. Rc7 {[%clk 0:00:10]} 40...
Qh5 {[%clk 0:00:03.9]} 41. Qf6 {[%clk 0:00:09.3]} 41... Qf5 {[%clk 0:00:03]} 42.
Nc5 {[%clk 0:00:09.9]} 42... Qxf6 {[%clk 0:00:02.9]} 43. exf6 {[%clk 0:00:10.8]}
43... e5 {[%clk 0:00:02.3]} 44. Rxd7 {[%clk 0:00:11.2]} 44... Rh8 {[%clk
0:00:02.7]} 45. Re7+ {[%clk 0:00:11.7]} 45... Kd8 {[%clk 0:00:02.7]} 46. Rxf7
{[%clk 0:00:12.3]} 46... Rxh4+ {[%clk 0:00:03.5]} 47. Kg3 {[%clk 0:00:12.2]}
47... Ke8 {[%clk 0:00:03.4]} 48. Re7+ {[%clk 0:00:12.2]} 48... Kf8 {[%clk
0:00:03.8]} 49. Ne6+ {[%clk 0:00:13.1]} 49... Kg8 {[%clk 0:00:04.6]} 50. f7+
{[%clk 0:00:13.5]} 1-0